Cogmind - Beta 14 @@@ ROGUE MODE // 2024.11.02 @ 14:00:47 Player: Gabe+Kate4EVR Result: Destroyed by G-47 Trooper with Particle Gun Performance ------------- Evolutions (3) 1500 Regions Visited (5) 1000 Robots Destroyed (56) 280 Value Destroyed (1349) 1349 Prototype IDs (0) 0 Alien Tech Used (0) 0 Bonus (55) 55 TOTAL SCORE: 4184 Bonus ------- High Alert Combat Kills 55 Cogmind --------- Core Integrity 0/700 Matter 77/300 Energy 72/100 System Corruption 0% Temperature Cool (9) Movement Core (50) Location -7/Lower Caves Parts ------- > --- POWER (1) -------- (None) > --- PROPULSION (3) --- (None) > --- UTILITY (4) ------ Advanced Visual Processing Unit Transmission Jammer > --- WEAPON (5) ------- (None) > --- INVENTORY (5) ---- Light Deuterium Engine Medium Storage Unit High-capacity Matter Pod (0) Gauss Cannon Heavy Rocket Launcher Peak State ------------ > --- POWER ------------ Light Nuclear Core > --- PROPULSION ------- Xenon Bombardment Thruster > --- UTILITY ---------- Improved Heat Sink Visual Processing Unit Advanced Targeting Computer Transmission Jammer > --- WEAPON ----------- Arc Projector Gauss Cannon > --- INVENTORY -------- Heat Sink Medium Storage Unit High-capacity Matter Pod Improved Terrain Scanner Heavy Rocket Launcher [Rating: 28] Favorites ----------- Power Improved Ion Engine Engine Improved Ion Engine Power Core Light Nuclear Core Propulsion Light Treads Treads Light Treads Leg Aluminum Leg Wheel Wheel Flight Unit Xenon Bombardment Thruster Utility Signal Interpreter Device Improved Heat Sink Storage Medium Storage Unit Processor Signal Interpreter Weapon Assault Rifle Energy Gun Beam Rifle Ballistic Gun Assault Rifle Ballistic Cannon Light Cannon Launcher Grenade Launcher Special Weapon Flamer Impact Weapon Mace Build | -11 -10 -9 -8 -7 -7 ------- Run | Yrd Mat Mat Mat Fac Low Slots Evolved 6 | . . 2 2 2 . Power . | . . . . . . Propulsion 1 | . . . . 1 . Utility 2 | . . . 2 . . Weapon 3 | . . 2 . 1 . Parts Attached 69 | 2 19 13 22 11 2 Power 7 | . 1 1 4 1 . Engine 5 | . 1 1 3 . . Core 2 | . . . 1 1 . Reactor . | . . . . . . Propulsion 18 | . 6 5 4 3 . Treads 7 | . . 5 2 . . Leg 8 | . 6 . 2 . . Wheel 2 | . . . . 2 . Hover . | . . . . . . Flight 1 | . . . . 1 . Utility 12 | . 4 1 4 3 . Device 4 | . 1 . 2 1 . Storage 2 | . . 1 1 . . Processor 6 | . 3 . 1 2 . Hackware . | . . . . . . Protection . | . . . . . . Artifact . | . . . . . . Weapon 32 | 2 8 6 10 4 2 Energy Gun 6 | 2 . . 3 1 . Energy Cannon . | . . . . . . Ballistic Gun 8 | . 2 3 2 1 . Ballistic Cannon 13 | . 5 3 2 2 1 Launcher 3 | . 1 . 2 . . Special Weapon 1 | . . . . . 1 Impact Weapon 1 | . . . 1 . . Slashing Weapon . | . . . . . . Piercing Weapon . | . . . . . . Special Melee Weapon . | . . . . . . Unidentified Prototypes . | . . . . . . Parts Lost 27 | . . . 16 8 3 Power 3 | . . . 2 1 . Propulsion 8 | . . . 3 4 1 Utility 2 | . . . 1 . 1 Weapon 14 | . . . 10 3 1 Highest Loss Streak 12 | . . . 12 7 2 To Critical Strikes 1 | . . . 1 . . Average Slot Usage (%) 77 | . 83 99 76 48 28 Engine 6 | . 9 11 4 2 . Core 1 | . . . 2 2 3 Treads 8 | . . 17 11 . . Leg 6 | . 21 3 3 3 . Device 2 | . 2 . 1 8 7 Storage 7 | . . 10 12 5 . Processor 13 | . 20 11 13 11 11 Energy Gun 1 | . 1 . 5 2 . Ballistic Gun 13 | . 14 22 11 1 . Ballistic Cannon 11 | . 11 21 5 1 . Impact Weapon 1 | . . . 3 2 . Peak Build Rating 28 | 2 7 15 18 28 18 Average Rating 12 | 1 5 12 14 16 13 On Entrance 9 | . 2 7 15 17 18 Naked Turns . | . . . . . . Heaviest Build 34 | 2 12 30 34 28 6 Greatest Support 40 | 3 20 40 40 23 6 Greatest Overweight (x) 5 | . 1 1 5 2 1 Average Overweight (x) . | . . . . . . Largest Inventory Capacity 10 | 5 5 10 10 10 5 Average Capacity 7 | 5 5 9 10 6 5 Most Carried 10 | . 5 10 10 5 5 Average Carried 6 | . 4 9 6 4 4 Final Capacity 10 | 5 5 10 10 5 5 Final Carried 10 | . 5 10 4 5 5 Class Distribution -------------------- 41% | Mutant 32% | Gunner 14% | Scavenger-Skirmisher 11% | Scavenger-Mutant Dominant Class ---------------- Scavenger-Mutant | -10/Materials Gunner | -9/Materials Scavenger-Skirmisher | -8/Materials Mutant | -7/Factory Mutant | -7/Lower Caves Resources | -11 -10 -9 -8 -7 -7 ----------- Run | Yrd Mat Mat Mat Fac Low Matter Collected 1628 | 216 302 781 303 . 26 Remotely 179 | . 179 . . . . Salvage Created 1500 | . 359 550 538 42 11 Parts 95 | . 29 35 27 3 1 Haulers Intercepted 5 | . 2 3 . . . Recyclers Shooed 1 | . . . 1 . . Parts Field Recycled . | . . . . . . Retrieved Matter . | . . . . . . Parts Self-Destructed . | . . . . . . Prevented . | . . . . . . Kills | -11 -10 -9 -8 -7 -7 ------- Run | Yrd Mat Mat Mat Fac Low Combat Hostiles Destroyed 38 | . 8 12 16 1 1 Melee 1 | . . . 1 . . Guns 13 | . . 7 6 . . Cannons 14 | . 5 5 2 1 1 AOE 9 | . 3 . 6 . . Classes Destroyed 11 | . 6 3 2 . . Worker 6 | . 3 1 1 1 . Builder 2 | . . . 2 . . Hauler 5 | . 2 3 . . . Recycler 2 | . 1 . 1 . . Mechanic 1 | . . 1 . . . Operator 1 | . 1 . . . . Watcher 1 | . . 1 . . . Swarmer 12 | . 3 3 4 1 1 Grunt 19 | . 5 7 7 . . Brawler 1 | . . . 1 . . Sentry 6 | . . 2 4 . . Best Kill Streak 7 | . 6 5 7 2 1 Combat Bots Only 6 | . 6 4 5 1 1 Max Kills in Single Turn 3 | . 3 1 3 1 1 Gunslinging . | . . . . . . Exploded 3 | . 3 . 3 . . Melee 1 | . . . 1 . . Uniques/NPCs Destroyed . | . . . . . . Combat | -11 -10 -9 -8 -7 -7 -------- Run | Yrd Mat Mat Mat Fac Low Hostile Shots Fired 369 | . 21 58 163 88 39 Missed 106 | . 9 10 43 22 22 Damage Taken 4051 | 1 137 517 2002 1103 291 Core 1249 | . 15 66 457 519 192 Absorbed by Shields . | . . . . . . Core Remaining (%) 73 | 100 94 83 16 . . Volleys Fired 111 | . 30 33 36 6 6 Largest 4 | . 2 4 4 2 1 Hottest 157 | . 80 117 157 103 100 Shots Fired 305 | . 60 131 97 11 6 Gun 170 | . 30 65 67 8 . Cannon 124 | . 29 66 21 3 5 Launcher 10 | . 1 . 9 . . Special 1 | . . . . . 1 Kinetic 268 | . 55 131 71 6 5 Thermal 24 | . 4 . 17 2 1 Explosive 10 | . 1 . 9 . . Electromagnetic 3 | . . . . 3 . Robot Hit Streak 9 | . 6 4 9 3 2 Robot Miss Streak 6 | . 4 6 3 4 4 Penetration Max . | . . . . . . Secondary Targets . | . . . . . . Shots Hit Robots 155 | . 31 60 57 5 2 Core Hits 96 | . 19 29 44 3 1 Critical Kills . | . . . . . . Critical Parts Destroyed 3 | . 1 1 1 . . Critical Strikes 6 | . 1 3 2 . . Destroy 2 | . 1 1 . . . Blast 2 | . . 2 . . . Smash 2 | . . . 2 . . Melee Attacks 16 | . . . 13 3 . Impact 16 | . . . 13 3 . Slashing . | . . . . . . Piercing . | . . . . . . Sneak Attacks . | . . . . . . Combat Hostiles . | . . . . . . Follow-up Attacks . | . . . . . . Damage Inflicted 4037 | 3 655 1036 2188 115 40 Guns 1425 | . 228 534 608 55 . Cannons 1118 | . 284 502 247 57 28 Explosions 1238 | . 143 . 1095 . . Melee 233 | . . . 233 . . Ramming 11 | 3 . . 5 3 . Kinetic 2417 | . 480 1036 787 86 28 Thermal 126 | . 32 . 68 14 12 Explosive 1176 | . 143 . 1033 . . Electromagnetic 74 | . . . 62 12 . Impact 233 | . . . 233 . . Slashing . | . . . . . . Piercing . | . . . . . . Highest Corruption 10 | . . . 10 . . Average Corruption 9 | . . . 9 . . Corruption Purged . | . . . . . . Corruption Blocked . | . . . . . . Effects 6 | . . . 6 . . Matter Fused 2 | . . . 2 . . Energy Discharges 1 | . . . 1 . . Parts Rejected 1 | . . . 1 . . Alerts 1 | . . . 1 . . Misdirections 1 | . . . 1 . . Overload Shots . | . . . . . . Overflow Damage 96 | . 4 . 92 . . Projectiles 4 | . 4 . . . . Explosions 58 | . . . 58 . . Melee 34 | . . . 34 . . Knockbacks 7 | . 1 3 3 . . Impact . | . . . . . . Kinetic 7 | . 1 3 3 . . Secondary . | . . . . . . Self-Inflicted Damage 162 | 1 . . 160 1 . Shots 4 | . . . 4 . . Rammed 7 | 1 . 1 2 3 . Targets Rammed 8 | 1 . 1 3 3 . Kicked . | . . . . . . Crushed 1 | . . . 1 . . Highest Temperature 399 | . 57 395 399 33 8 Average Temperature 120 | . 15 128 146 15 4 Received Heat Transfer 1611 | . 60 162 846 435 108 Effects 4 | . . 3 1 . . Shutdowns 2 | . . 2 . . . Energy Bleed 1 | . . 1 . . . Short Circuit 1 | . . . 1 . . Siege Activations . | . . . . . . Robots Corrupted 1 | . . . 1 . . Combat Hostiles 1 | . . . 1 . . Parts Fried 1 | . . . 1 . . Impact Corruptions 3 | . . . 3 . . Robots Melted . | . . . . . . Combat Hostiles . | . . . . . . Parts Melted . | . . . . . . Heat Transferred 340 | . 75 . 148 37 80 Parts Sabotaged . | . . . . . . Parts Stolen . | . . . . . . Parts Stripped . | . . . . . . Power Chain Reactions . | . . . . . . Alert | -11 -10 -9 -8 -7 -7 ------- Run | Yrd Mat Mat Mat Fac Low Peak Influence 509 | . 293 319 509 333 . Initial 147 | . . 59 117 147 . Average 209 | . 170 170 300 225 . Maximum Alert Level 2 | . 1 1 2 1 . Low Security (%) 47 | 100 57 59 23 41 . Level 1 46 | . 42 40 53 58 . Level 2 5 | . . . 22 . . Level 3 . | . . . . . . Level 4 . | . . . . . . Level 5 . | . . . . . . High Security . | . . . . . . Max Security . | . . . . . . Squads Dispatched 6 | . 2 2 2 . . Investigation 1 | . . 1 . . . Extermination . | . . . . . . Reinforcement 5 | . 2 1 2 . . Assault . | . . . . . . Garrison . | . . . . . . Intercept . | . . . . . . Searches Triggered . | . . . . . . Construction Impeded 1 | . . . 1 . . Haulers Reinforced . | . . . . . . Active Scanning Responses . | . . . . . . Cargo Convoy Interrupts . | . . . . . . Stealth | -11 -10 -9 -8 -7 -7 --------- Run | Yrd Mat Mat Mat Fac Low Distress Signals 2 | . 2 . . . . Communications Jammed . | . . . . . . Distress Signals . | . . . . . . Times Spotted 80 | . 16 16 20 17 11 Peak Tracking Total 8 | . 5 4 7 8 8 Tactical Retreats 8 | . 1 . 2 4 1 Traps | -11 -10 -9 -8 -7 -7 ------- Run | Yrd Mat Mat Mat Fac Low Traps Triggered 3 | . 1 1 . 1 . Indirectly . | . . . . . . Trap Hack Attempts . | . . . . . . Triggered . | . . . . . . Disarmed . | . . . . . . Reprogrammed . | . . . . . . Reused . | . . . . . . Traps Extracted . | . . . . . . Installed . | . . . . . . Triggered . | . . . . . . Machines | -11 -10 -9 -8 -7 -7 ---------- Run | Yrd Mat Mat Mat Fac Low Machines Disabled 4 | . . 1 2 1 . Max in Single Turn 1 | . . 1 1 1 . Machines Repaired . | . . . . . . Machines Dismantled . | . . . . . . Machines Sabotaged . | . . . . . . Overloaded Fab Kills . | . . . . . . Hacking | -11 -10 -9 -8 -7 -7 --------- Run | Yrd Mat Mat Mat Fac Low Machines Accessed 5 | . 1 1 1 2 . Terminals 3 | . 1 1 . 1 . Fabricators 1 | . . . . 1 . Repair Stations . | . . . . . . Recycling Units . | . . . . . . Scanalyzers 1 | . . . 1 . . Garrison Access . | . . . . . . Total Hacks 9 | . 1 3 2 3 . Successful 4 | . 1 . 2 1 . Failed 5 | . . 3 . 2 . Catastrophic 2 | . . 1 . 1 . Database Lockouts . | . . . . . . Manual 4 | . 1 3 . . . Terminals 6 | . 1 3 . 2 . Fabricators 1 | . . . . 1 . Repair Stations . | . . . . . . Recycling Units . | . . . . . . Scanalyzers 2 | . . . 2 . . Garrison Access . | . . . . . . Terminal Hacks 2 | . 1 . . 1 . Open DSF 1 | . . . . 1 . Unreport Threat 1 | . 1 . . . . Fabricator Hacks . | . . . . . . Repair Station Hacks . | . . . . . . Recycling Unit Hacks . | . . . . . . Scanalyzer 2 | . . . 2 . . Insert Component 1 | . . . 1 . . Analyze 1 | . . . 1 . . Garrison Access Hacks . | . . . . . . Unauthorized Hacks . | . . . . . . Terminals . | . . . . . . Fabricators . | . . . . . . Repair Stations . | . . . . . . Recycling Units . | . . . . . . Scanalyzers . | . . . . . . Garrison Access . | . . . . . . Data Cores Recovered . | . . . . . . Used . | . . . . . . Hacking Detections 5 | . 1 1 1 2 . Full Trace Events . | . . . . . . Feedback Events . | . . . . . . Feedback Blocked . | . . . . . . Robot Schematics Acquired . | . . . . . . Robots Built . | . . . . . . Authchips . | . . . . . . Time . | . . . . . . Total Robot Build Rating . | . . . . . . Part Schematics Acquired 1 | . . . 1 . . Parts Built . | . . . . . . Authchips . | . . . . . . Time . | . . . . . . Total Part Build Rating . | . . . . . . Parts Repaired . | . . . . . . Time . | . . . . . . Parts Recycled . | . . . . . . Recycled Matter . | . . . . . . Retrieved Matter . | . . . . . . Retrieved Components . | . . . . . . Parts Scanalyzed 1 | . . . 1 . . Part Schematics Acquired 1 | . . . 1 . . Parts Damaged . | . . . . . . Bothacking | -11 -10 -9 -8 -7 -7 ------------ Run | Yrd Mat Mat Mat Fac Low Used RIF Installer . | . . . . . . Robots Hacked . | . . . . . . Non-combat . | . . . . . . Combat . | . . . . . . Robot Hacks Applied . | . . . . . . Relay Couplers Released . | . . . . . . Fabnet Peak Effective % . | . . . . . . Robots Rewired . | . . . . . . Allies Hacked . | . . . . . . Hacks Repelled . | . . . . . . Allies | -11 -10 -9 -8 -7 -7 -------- Run | Yrd Mat Mat Mat Fac Low Total Allies . | . . . . . . Largest Group . | . . . . . . Highest-Rated Group . | . . . . . . Highest-Rated Ally . | . . . . . . Total Orders . | . . . . . . Ally Attacks . | . . . . . . Total Damage . | . . . . . . Kills . | . . . . . . Allies Corrupted . | . . . . . . Allies Melted . | . . . . . . Intel | -11 -10 -9 -8 -7 -7 ------- Run | Yrd Mat Mat Mat Fac Low Robot Analysis Total . | . . . . . . Derelict Logs Recovered 1 | . . . . . 1 Drone Launches . | . . . . . . Drone Recoveries . | . . . . . . Exploration | -11 -10 -9 -8 -7 -7 ------------- Run | Yrd Mat Mat Mat Fac Low Turns Passed 2220 | 15 376 797 483 348 201 Spaces Moved 1525 | 23 194 348 192 352 416 Core 370 | 23 45 . 2 140 160 Treads 383 | . . 266 117 . . Legs 347 | . 149 82 73 43 . Wheels 7 | . . . . 7 . Hover . | . . . . . . Flight 418 | . . . . 162 256 Fastest Speed 40 | 50 50 120 120 40 40 Average Speed 101 | 50 111 157 156 83 43 Slowest Speed 300 | 50 120 240 300 260 100 Overloaded Moves . | . . . . . . Propulsion Burnouts . | . . . . . . Robots Hopped 3 | . . . . 3 . Cave-ins Triggered . | . . . . . . Exploration Rate (%) 31 | 4 50 42 19 14 61 Regions Visited 5 Branch Regions 1 Pre-discovered Areas 1 | . . . . . 1 Known Exits Taken 2 | . 1 1 . . . Unknown Exits Taken 3 | 1 . . 1 1 . Scrap Searched 1 | . . . . . 1 Spaces Dug . | . . . . . . Terrain Destroyed 56 | . 4 5 42 1 4 Melee . | . . . . . . Projectile 12 | . . 5 2 1 4 AOE 44 | . 4 . 40 . . Terrain Rammed . | . . . . . . Walls Destroyed . | . . . . . . Machines Disabled . | . . . . . . Actions | -11 -10 -9 -8 -7 -7 --------- Run | Yrd Mat Mat Mat Fac Low Total 1934 | 25 291 524 278 389 427 Wait 147 | . 31 102 10 3 1 Move 1514 | 22 193 347 191 345 416 Hop 3 | . . . . 3 . Pick Up 25 | . 7 12 2 4 . Fast Attach 33 | 2 13 3 7 7 1 Attach 17 | . . 2 11 3 1 Detach 11 | . 2 2 1 5 1 Swap 19 | . 6 8 4 1 . Drop 30 | . 9 14 . 6 1 Fire 111 | . 30 33 36 6 6 Melee 16 | . . . 13 3 . Ram 4 | 1 . . . 3 . Kick . | . . . . . . Crush 4 | . . 1 3 . . Escape Stasis . | . . . . . . Rewire . | . . . . . . Trap . | . . . . . . Miscellaneous . | . . . . . . Route ------- -11/Scrapyard -10/Materials (discovered 2 exits: *Mat / *Min) -9/Materials (discovered 2 exits: *Mat / [*Min]) -8/Materials -7/Factory -7/Lower Caves History --------- Turn | Location | Event 5 | -11/Scrapyard | Discovered new exit (range 15) 16 | -11/Scrapyard | Entered Materials 212 | -10/Materials | Discovered new exit (range 10) 221 | -10/Materials | Identified exit to Mines 338 | -10/Materials | Discovered new exit (range 12) 374 | -10/Materials | Identified exit to Materials 392 | -10/Materials | Entered another Materials area 392 | -9/Materials | Evolved 2 slots: Weapon x2 746 | -9/Materials | Build established: Gunner 872 | -9/Materials | Discovered new exit (range 11) 1165 | -9/Materials | Discovered new exit (range 9) 1188 | -9/Materials | Identified exit to Materials 1189 | -9/Materials | Entered another Materials area 1189 | -8/Materials | Evolved 2 slots: Utility x2 1452 | -8/Materials | System corruption reached 10% 1486 | -8/Materials | Core integrity fell below 50% 1518 | -8/Materials | Lost 12 parts (1p2n1u8w) 1574 | -8/Materials | Lost 3 parts (1p1n1w) 1639 | -8/Materials | Discovered new exit (range 7) 1670 | -8/Materials | Core integrity fell below 20% 1672 | -8/Materials | Entered Factory 1672 | -7/Factory | Evolved 2 slots: Propulsion x1, Weapon x1 1752 | -7/Factory | Build established: Mutant 1823 | -7/Factory | Lost 7 parts (1p3n3w) 1860 | -7/Factory | Core integrity fell below 50% 2014 | -7/Factory | Discovered new exit (range 15) 2020 | -7/Factory | Entered Lower Caves 2131 | -7/Lower Caves | Core integrity fell below 20% 2198 | -7/Lower Caves | Attracted the attention of an 0b10 outpost 2221 | -7/Lower Caves | Destroyed by G-47 Trooper with Particle Gun Last Messages --------------- 02168_ Acquired 1 matter. 02168_ Acquired 4 matter. 02169_ Acquired 1 matter. 02170_ Acquired 3 matter. 02171_ Acquired 1 matter. 02197_ Searching scrap... 02197_ Found Imp. Carbon-fiber Leg. 02197_ Found Flamer. 02197_ Found Lrg. Matter Pod. 02197_ Found Energy Filter. 02197_ Found 63 Matter. 02197_ Slug penetrates Wall. 02198_ Y-64 Sentinel: "DETECTED UNIDENTIFIED DERELICT." 02198_ Acquired Flamer. 02202_ Y-64 Sentinel: "REQUESTING BACKUP." 02203_ Penetrated by Slug. 02203_ Flamer destroyed. 02214_ Slug penetrates Wall. 02218_ S-27 Virus destroyed. 02220_ Acquired 11 matter. Map ----- +----------------------------------------------------+ | | | | | | | | | | | ?????????????????????????????????????????????????? | | ?????????????????????????????????????????????????? | | ?????????????????????????????????????????????????? | | ?????????????????????????????????????????????????? | | ?????????????????????????????????????????????????? | | ?????????????????????????????????????????????????? | | ?????????????????????????????????????????????????? | | ?????????????????????????????????????????????????? | | ?????????????????????????????????????????????????? | | ?????????????????????????????????????????????????? | | ?????????????????????????????????????????????????? | | ?????????????????????????????????????????????????? | | ?????????????????????##??????????????????????????? | | ????????????????????? #??????????????????????????? | | ?????????????##?????? #??????????????????????????? | | #####????????? ????? ###????????????????????????? | | #?????????? ????? # ##??????????????????????? | | #?????????? ???? # ##?????????????????????? | | ## #??????????? #### # #?????????????????????? | | ?# #????????????/ # ## * #?????????????????????? | | ?# #????????????# #; @;#?????????????????????? | | ## #???????????## b;; ##?????????????????????? | | # #??????? g###% ##????????????????????? | | # #??????######## !#??#g #????????????????????? | | ########???####%!####Y #????????????????????? | | # ### ## ##### = ##????????????????????? | | ## # # ## ## #l##?????????????????????? | | # # # # ##??????????????????????? | | ## ## ## #####???????????????????????? | | #### ## # #####???????????????????????????? | | #??# #??????????????????????????????? | | ##?# # # # # #?????????????????????????????? | | #??# # # #?????????????????????????????? | | ???# ## ##?????????????????????????????? | | ???## #??????????????????????????????? | | ????# # # #?????????????????????????????? | | ???? # # ????????????????????????????? | | ???? # ### # ???????????????????????????? | | ### # ####?? ##?#??????????????????????????? | | # ##????? ##?????????????????????????????? | | #??????# # ##??????????????????????????????? | | ## ?#????????# #????????????????????????????????? | | ???#??????????? ?????????????????????????????????? | | ???????????????#?????????????????????????????????? | | ?????????????????????????????????????????????????? | +----------------------------------------------------+ Best States ------------- Heat Dissipation 48 Energy Generation 14 Energy Capacity 265 Matter Stores 300 Matter Capacity 500 Sight Range 20 Terrain Scan Density 10 Jamming Range 12 Evasion (%) 62 Targeting Accuracy 8 Recoil Reduction 2 Item Schematics ----------------- Imp. Light Cannon | -8/Materials | Scanalyzed Robot Schematics ------------------ None Fabricated ------------ Nothing Alien Tech Used ----------------- None Achievements -------------- None Challenges ------------ None Game ------ Seed PortableBarrageArray Manual? 0 Play Time 00:20:51 Cumulative 204.7 hours Start 2024.11.02 @ 13:40:18 End 2024.11.02 @ 14:00:47 Sessions 1 Manual Loads 0 Difficulty Rogue Special Mode None Game No. 398 Rogue 398 Adventurer 0 Explorer 0 Win Type - Total 0 Types 0/0/0/0/0/0/0/0/0 Lore% 42 Gallery% 65 Achievement% 48 Wizard Run 0 Options --------- Layout 0 ASCII 0 Keyboard 1 Movement Numpad Keybinds 0 Fullscreen 1 Font 18/X11 Map View 76x50 Zoom Use 0% Tactical HUD 1 Map Filters NONE Filters NONE Steam 1 RUN: 184f27a1-96b8-4756-8c88-7fc4011cab21